Cogmind - Beta 15 @@@ ROGUE MODE // 2025.05.28 @ 14:22:03 Player: SuperSwiss Result: Self-destructed Performance ------------- Evolutions (2) 1000 Regions Visited (4) 800 Robots Destroyed (20) 100 Value Destroyed (557) 557 Prototype IDs (0) 0 Alien Tech Used (0) 0 Bonus (-52) -52 TOTAL SCORE: 2405 Bonus ------- Friendly Fire -52 Cogmind --------- Core Integrity 550/550 Matter 241/300 Energy 250/250 System Corruption 0% Temperature Cool (0) Movement Treading (250) Ox1 Location -8/Materials Parts ------- > --- POWER (1) -------- Ion Engine > --- PROPULSION (3) --- Armored Treads Subdweller Monowheel > --- UTILITY (4) ------ Large Storage Unit Seismic Detector > --- WEAPON (3) ------- Assault Rifle Minigun > --- INVENTORY (15) --- Ion Engine Light Treads Compact Wheel Improved Heat Sink Weight Redist. System Improved Terrain Scanner Light Armor Plating Improved Trap Extractor (0/6) Assault Rifle Light Assault Rifle Light Cannon Grenade Launcher Grenade Launcher Rocket Launcher Mining Laser Peak State ------------ > --- POWER ------------ Ion Engine > --- PROPULSION ------- Armored Treads Wheel > --- UTILITY ---------- Large Storage Unit Improved Trap Extractor > --- WEAPON ----------- Assault Rifle Assault Rifle > --- INVENTORY -------- Ion Engine Light Treads Compact Wheel Improved Heat Sink Weight Redist. System Improved Terrain Scanner Seismic Detector Light Armor Plating Light Assault Rifle Light Assault Rifle Light Cannon Grenade Launcher Grenade Launcher Rocket Launcher Mining Laser [Rating: 14] Favorites ----------- Power Ion Engine Engine Ion Engine Propulsion Wheel Treads Light Treads Wheel Wheel Utility Seismic Detector Device Seismic Detector Storage Large Storage Unit Weapon Assault Rifle Energy Gun EM Pulse Gun Ballistic Gun Assault Rifle Ballistic Cannon Light Cannon Special Weapon Mining Laser Build | -11 -10 -10 -10 -8 ------- Run | Yrd Mat Min Sub Mat Slots Evolved 4 | . . . . 4 Power . | . . . . . Propulsion 1 | . . . . 1 Utility 2 | . . . . 2 Weapon 1 | . . . . 1 Parts Attached 24 | 7 13 3 1 . Power 3 | 1 2 . . . Engine 3 | 1 2 . . . Core . | . . . . . Reactor . | . . . . . Propulsion 6 | 2 2 1 1 . Treads 3 | 1 1 1 . . Leg . | . . . . . Wheel 3 | 1 1 . 1 . Hover . | . . . . . Flight . | . . . . . Utility 6 | 2 3 1 . . Device 4 | 1 2 1 . . Storage 2 | 1 1 . . . Processor . | . . . . . Hackware . | . . . . . Protection . | . . . . . Artifact . | . . . . . Weapon 9 | 2 6 1 . . Energy Gun 1 | . 1 . . . Energy Cannon . | . . . . . Ballistic Gun 5 | 2 2 1 . . Ballistic Cannon 1 | . 1 . . . Launcher . | . . . . . Special Weapon 2 | . 2 . . . Impact Weapon . | . . . . . Slashing Weapon . | . . . . . Piercing Weapon . | . . . . . Special Melee Weapon . | . . . . . Unidentified Prototypes . | . . . . . Corrupted Parts 2 | . . 2 . . System Corruption 9 | . . 9 . . Parts Lost 3 | . 3 . . . Power 1 | . 1 . . . Propulsion . | . . . . . Utility . | . . . . . Weapon 2 | . 2 . . . Highest Loss Streak 2 | . 2 . . . To Critical Strikes . | . . . . . Average Backups 8 | 2 6 14 15 15 Power . | . . 1 1 1 Propulsion 1 | . 1 2 2 2 Utility 2 | . 2 4 5 5 Weapon 3 | . 1 6 7 7 Tool/Special . | . . . . . Unused Backups 7 | . . . . 7 Power 1 | . . . . 1 Propulsion . | . . . . . Utility 2 | . . . . 2 Weapon 4 | . . . . 4 Tool/Special . | . . . . . Average Slot Usage (%) 99 | . 100 100 100 63 Engine 13 | . 14 14 14 9 Treads 14 | . 14 14 14 9 Wheel 13 | . 13 14 14 9 Device 14 | . 15 14 14 9 Storage 13 | . 12 14 14 9 Energy Gun 4 | . 6 . . . Ballistic Gun 22 | . 20 28 28 18 Peak Build Rating 14 | 7 9 14 14 14 Average Rating 8 | 5 7 9 13 14 On Entrance 8 | . 7 8 13 14 Naked Turns . | . . . . . Heaviest Build 32 | 13 30 32 31 . Greatest Support 20 | 20 20 10 20 . Greatest Overweight (x) 3 | 2 2 3 3 . Average Overweight (x) 1 | . 1 2 2 . Largest Inventory Capacity 15 | 8 15 15 15 15 Average Capacity 13 | 6 13 15 15 15 Most Carried 15 | 4 13 15 15 15 Average Carried 8 | 2 6 14 15 15 Final Capacity 15 | 8 15 15 15 15 Final Carried 15 | 4 13 15 15 15 Class Distribution -------------------- 100% | Mutant Dominant Class ---------------- Mutant | -10/Materials Mutant | -10/Mines Mutant | -10/Subcaves Mutant | -8/Materials Resources | -11 -10 -10 -10 -8 ----------- Run | Yrd Mat Min Sub Mat Matter Collected 813 | 261 403 69 80 . Remotely . | . . . . . Salvage Created 881 | 131 592 . 151 7 Parts 49 | 12 29 . 7 1 Haulers Intercepted 2 | . 2 . . . Recyclers Shooed . | . . . . . Parts Field Recycled . | . . . . . Retrieved Matter . | . . . . . Parts Self-Destructed . | . . . . . Prevented . | . . . . . Kills | -11 -10 -10 -10 -8 ------- Run | Yrd Mat Min Sub Mat Combat Hostiles Destroyed 14 | . 11 . 3 . Guns 13 | . 10 . 3 . AOE 1 | . 1 . . . Classes Destroyed 6 | 2 2 . 1 1 Tunneler 2 | 2 . . . . Hauler 2 | . 2 . . . Recycler 1 | 1 . . . . Grunt 11 | . 11 . . . Subdweller 3 | . . . 3 . Zionite 1 | . . . . 1 Best Kill Streak 3 | 3 3 . 2 . Combat Bots Only 3 | . 3 . 2 . Max Kills in Single Turn 1 | 1 1 . 1 1 Gunslinging . | . . . . . Exploded 1 | . 1 . . . Melee . | . . . . . Uniques/NPCs Destroyed . | . . . . . Combat | -11 -10 -10 -10 -8 -------- Run | Yrd Mat Min Sub Mat Hostile Shots Fired 77 | . 70 . 7 . Missed 21 | . 19 . 2 . Hits 56 | . 51 . 5 . Projectile 56 | . 51 . 5 . Critical Strikes 1 | . . . 1 . Damage Taken 856 | . 716 12 128 . Core 153 | . 153 . . . Absorbed by Shields . | . . . . . Regen/Repaired (Parts) 95 | . 95 . . . Core Remaining (%) 69 | 100 . . 38 . Volleys Fired 73 | 3 59 . 8 3 Largest 2 | 2 2 . 2 2 Hottest 100 | 40 100 . 45 45 Shots Fired 138 | 6 109 . 17 6 Gun 130 | 6 101 . 17 6 Cannon 2 | . 2 . . . Launcher . | . . . . . Special 6 | . 6 . . . Kinetic 101 | 6 72 . 17 6 Thermal 6 | . 6 . . . Explosive . | . . . . . Electromagnetic 31 | . 31 . . . Robot Hit Streak 17 | 5 17 . 12 15 Robot Miss Streak 3 | . 3 . 3 1 Penetration Max . | . . . . . Secondary Targets 2 | . 1 . 1 . Max Gunslinging Chain 1 | . 1 . 1 . Shots Hit Robots 86 | 5 63 . 14 4 Core Hits 35 | 3 25 . 5 2 Critical Kills . | . . . . . Critical Parts Destroyed . | . . . . . Critical Strikes 1 | . 1 . . . Corrupt 1 | . 1 . . . Melee Attacks . | . . . . . Impact . | . . . . . Slashing . | . . . . . Piercing . | . . . . . Sneak Attacks . | . . . . . Combat Hostiles . | . . . . . Follow-up Attacks . | . . . . . Damage Inflicted 1186 | 70 855 . 189 72 Guns 1098 | 70 767 . 189 72 Cannons . | . . . . . Explosions 88 | . 88 . . . Melee . | . . . . . Ramming . | . . . . . Kinetic 849 | 70 518 . 189 72 Thermal 88 | . 88 . . . Explosive . | . . . . . Electromagnetic 249 | . 249 . . . Impact . | . . . . . Slashing . | . . . . . Piercing . | . . . . . Highest Corruption 9 | . . 9 9 . Average Corruption 8 | . . 6 9 . Corruption Purged . | . . . . . Corruption Blocked . | . . . . . Effects 11 | . . 2 9 . Message Errors 3 | . . 1 2 . Matter Fused 4 | . . . 4 . Heat Flow Errors 1 | . . 1 . . Energy Discharges 1 | . . . 1 . Data Loss (minor) 1 | . . . 1 . Misfires 1 | . . . 1 . Overload Shots . | . . . . . Overflow Damage . | . . . . . Projectiles . | . . . . . Explosions . | . . . . . Melee . | . . . . . Knockbacks . | . . . . . Impact . | . . . . . Kinetic . | . . . . . Secondary . | . . . . . Self-Inflicted Damage 45 | . 45 . . . Shots 1 | . 1 . . . Rammed . | . . . . . Targets Rammed . | . . . . . Kicked . | . . . . . Crushed . | . . . . . Highest Temperature 241 | . 108 122 241 . Average Temperature 50 | . 38 62 130 . Received Heat Transfer 664 | . 369 . 295 . Siege Activations . | . . . . . Martial Activations . | . . . . . Shielding Activations . | . . . . . Robots Disrupted . | . . . . . Combat Hostiles . | . . . . . Robots Corrupted . | . . . . . Combat Hostiles . | . . . . . Parts Fried . | . . . . . Impact Corruptions . | . . . . . Robots Melted . | . . . . . Combat Hostiles . | . . . . . Parts Melted . | . . . . . Heat Transferred 100 | . 100 . . . Parts Sabotaged . | . . . . . Parts Stolen . | . . . . . Parts Stripped . | . . . . . Power Chain Reactions 1 | . 1 . . . Alert | -11 -10 -10 -10 -8 ------- Run | Yrd Mat Min Sub Mat Maximum Alert Level . | . . . . . Low Security (%) 100 | 100 100 100 . 100 Level 1 . | . . . . . Level 2 . | . . . . . Level 3 . | . . . . . Level 4 . | . . . . . Level 5 . | . . . . . High Security . | . . . . . Max Security . | . . . . . Peak Influence 70 | 10 70 . . . Initial . | . . . . . Average 11 | 1 15 . . . Influence Increases 323 | 15 308 . . . Destroy 0b10 Robot/C 220 | . 220 . . . Destroy 0b10 Robot/NC 25 | 15 10 . . . Destroy Leader 44 | . 44 . . . Successful Hack 13 | . 13 . . . Destroy Structure 6 | . 6 . . . Lose Combat Pursuer 15 | . 15 . . . Influence Decreases 323 | 15 308 . . . Time Decay 307 | 15 292 . . . Lost Part 16 | . 16 . . . Squads Dispatched 2 | . 1 . . 1 Investigation 1 | . 1 . . . Extermination . | . . . . . Reinforcement 1 | . . . . 1 Assault . | . . . . . Garrison . | . . . . . Intercept . | . . . . . Searches Triggered . | . . . . . Construction Impeded . | . . . . . Haulers Reinforced . | . . . . . Active Scanning Responses . | . . . . . Cargo Convoy Interrupts . | . . . . . Stealth | -11 -10 -10 -10 -8 --------- Run | Yrd Mat Min Sub Mat Distress Signals 3 | . 3 . . . Communications Jammed . | . . . . . Distress Signals . | . . . . . Times Spotted 27 | . 23 . 3 1 Peak Tracking Total 3 | . 3 . 2 1 Tactical Retreats 1 | . 1 . . . Traps | -11 -10 -10 -10 -8 ------- Run | Yrd Mat Min Sub Mat Traps Triggered 2 | . 2 . . . Indirectly . | . . . . . Trap Hack Attempts . | . . . . . Triggered . | . . . . . Disarmed . | . . . . . Reprogrammed . | . . . . . Reused . | . . . . . Traps Extracted . | . . . . . Installed . | . . . . . Triggered . | . . . . . Machines | -11 -10 -10 -10 -8 ---------- Run | Yrd Mat Min Sub Mat Machines Disabled . | . . . . . Max in Single Turn . | . . . . . Machines Repaired . | . . . . . Machines Dismantled . | . . . . . Machines Sabotaged . | . . . . . Overloaded Fab Kills . | . . . . . Hacking | -11 -10 -10 -10 -8 --------- Run | Yrd Mat Min Sub Mat Machines Accessed 9 | . 8 1 . . Terminals 7 | . 7 . . . Fabricators . | . . . . . Repair Stations 1 | . 1 . . . Recycling Units . | . . . . . Scanalyzers . | . . . . . Garrison Access . | . . . . . Total Hacks 15 | . 14 1 . . Successful 10 | . 9 1 . . Failed 5 | . 5 . . . Catastrophic . | . . . . . Database Lockouts . | . . . . . Manual 9 | . 9 . . . Terminals 11 | . 11 . . . Fabricators . | . . . . . Repair Stations 3 | . 3 . . . Recycling Units . | . . . . . Scanalyzers . | . . . . . Garrison Access . | . . . . . Terminal Hacks 3 | . 2 1 . . Open Door 1 | . . 1 . . Locate Traps 1 | . 1 . . . Hauler Manifests 1 | . 1 . . . Fabricator Hacks . | . . . . . Repair Station Hacks 2 | . 2 . . . Scan Component 1 | . 1 . . . Repair 1 | . 1 . . . Recycling Unit Hacks . | . . . . . Scanalyzer . | . . . . . Garrison Access Hacks . | . . . . . Unauthorized Hacks 5 | . 5 . . . Terminals 5 | . 5 . . . Skim 5 | . 5 . . . Fabricators . | . . . . . Repair Stations . | . . . . . Recycling Units . | . . . . . Scanalyzers . | . . . . . Garrison Access . | . . . . . Data Cores Recovered . | . . . . . Used . | . . . . . Hacking Detections 2 | . 2 . . . Full Trace Events . | . . . . . Feedback Events . | . . . . . Feedback Blocked . | . . . . . Robot Schematics Acquired . | . . . . . Robots Built . | . . . . . Authchips . | . . . . . Time . | . . . . . Total Robot Build Rating . | . . . . . Part Schematics Acquired . | . . . . . Parts Built . | . . . . . Authchips . | . . . . . Time . | . . . . . Total Part Build Rating . | . . . . . Parts Repaired 1 | . 1 . . . Time 26 | . 26 . . . Parts Recycled . | . . . . . Recycled Matter . | . . . . . Retrieved Matter . | . . . . . Retrieved Components . | . . . . . Parts Scanalyzed . | . . . . . Part Schematics Acquired . | . . . . . Parts Damaged . | . . . . . Bothacking | -11 -10 -10 -10 -8 ------------ Run | Yrd Mat Min Sub Mat Used RIF Installer . | . . . . . Robots Hacked . | . . . . . Non-combat . | . . . . . Combat . | . . . . . Robot Hacks Applied . | . . . . . Relay Couplers Released . | . . . . . Fabnet Peak Effective % . | . . . . . Robots Rewired . | . . . . . Allies Hacked . | . . . . . Hacks Repelled . | . . . . . Allies | -11 -10 -10 -10 -8 -------- Run | Yrd Mat Min Sub Mat Total Allies 2 | . . 2 . . Largest Group 2 | . . 2 2 1 Highest-Rated Group 45 | . . 45 45 14 Highest-Rated Ally 31 | . . 31 31 14 Total Orders . | . . . . . Ally Attacks 10 | . . . 10 . Total Damage 102 | . . . 102 . Kills . | . . . . . Allies Corrupted . | . . . . . Allies Melted . | . . . . . Intel | -11 -10 -10 -10 -8 ------- Run | Yrd Mat Min Sub Mat Active Infowar (turns) 1582 | 25 1115 207 226 9 Terrain 31 | . 31 . . . Seismic 1551 | 25 1084 207 226 9 Robot Analysis Total . | . . . . . Derelict Logs Recovered . | . . . . . Drone Launches . | . . . . . Drone Recoveries . | . . . . . Exploration | -11 -10 -10 -10 -8 ------------- Run | Yrd Mat Min Sub Mat Turns Passed 1750 | 90 1188 237 226 9 Spaces Moved 1100 | 50 735 192 123 . Core 6 | 6 . . . . Treads 98 | 27 65 . 6 . Legs . | . . . . . Wheels 996 | 17 670 192 117 . Hover . | . . . . . Flight . | . . . . . Fastest Speed 50 | 50 95 110 120 . Average Speed 119 | 131 118 111 130 . Slowest Speed 250 | 160 240 125 250 . Overloaded Moves . | . . . . . Propulsion Burnouts . | . . . . . Robots Hopped . | . . . . . Potential Cave-ins . | . . . . . Cave-ins Triggered . | . . . . . Exploration Rate (%) 32 | 4 98 47 13 1 Regions Visited 4 Branch Regions 2 Pre-discovered Areas 1 | . 1 . . . Known Exits Taken . | . . . . . Unknown Exits Taken 4 | 1 1 1 1 . Scrap Searched 3 | . . 2 1 . Spaces Dug 1 | . 1 . . . Terrain Destroyed 6 | . 6 . . . Melee . | . . . . . Projectile 1 | . 1 . . . AOE 5 | . 5 . . . Terrain Rammed . | . . . . . Walls Destroyed . | . . . . . Machines Disabled . | . . . . . Actions | -11 -10 -10 -10 -8 --------- Run | Yrd Mat Min Sub Mat Total 1392 | 65 934 215 175 3 Wait 159 | 1 100 15 43 . Move 1096 | 49 734 191 122 . Hop . | . . . . . Pick Up 18 | 5 11 2 . . Fast Attach 11 | 6 3 2 . . Attach 7 | 1 6 . . . Detach 4 | . 3 1 . . Swap 18 | . 15 2 1 . Drop 6 | . 3 2 1 . Fire 73 | 3 59 . 8 3 Melee . | . . . . . Ram . | . . . . . Kick . | . . . . . Crush . | . . . . . Escape Stasis . | . . . . . Rewire . | . . . . . Trap . | . . . . . Miscellaneous . | . . . . . Route ------- -11/Scrapyard -10/Materials (discovered 6 exits: [*Mat x3] / *Min x2 / [*Sub]) -10/Mines -10/Subcaves -8/Materials History --------- Turn | Location | Event 28 | -11/Scrapyard | Discovered new exit (range 14) 91 | -11/Scrapyard | Entered Materials 132 | -10/Materials | Discovered new exit (range 13) 275 | -10/Materials | Discovered new exit (range 5) 329 | -10/Materials | Build established: Mutant 413 | -10/Materials | Discovered new exit (range 16) 666 | -10/Materials | Discovered new exit (range 10) 720 | -10/Materials | Discovered new exit (range 10) 844 | -10/Materials | Repaired Assault Rifle 884 | -10/Materials | Core integrity fell below 50% 935 | -10/Materials | Discovered new exit (range 16) 1041 | -10/Materials | Learned location of 1 exit from Recycling 1191 | -10/Materials | Derelicts attacked the area 1192 | -10/Materials | Loaded intel: 13 trap records 1279 | -10/Materials | Entered Mines 1294 | -10/Mines | Received a Rocket Launcher from a helpful Derelict 1436 | -10/Mines | Met a Derelict who couldn't figure out how to use a Trap Extractor 1495 | -10/Mines | Discovered new exit (range 8) 1516 | -10/Mines | Entered Subcaves 1516 | -10/Subcaves | Accompanied by 2 allies 1521 | -10/Subcaves | Led the pair of lost Derelicts to an unsafe place 1534 | -10/Subcaves | A swath of the cavern ceiling suddenly collapsed 1612 | -10/Subcaves | A swath of the cavern ceiling suddenly collapsed 1694 | -10/Subcaves | Discovered new exit (range 10) 1742 | -10/Subcaves | Entered Materials 1742 | -8/Materials | Accompanied by 1 ally 1742 | -8/Materials | Evolved 4 slots: Propulsion x1, Utility x2, Weapon x1 1751 | -8/Materials | Self-destructed Last Messages --------------- 01692_ Dropped Wheel. 01693_ Acquired 44 matter. 01694_ EXIT=FOUND 01704_ ,/DBOJPQ8Y>FTTZCT5TP#YU6OLKSGQXYFF3: 01720_ System corrupted: FCS attempts to trigger Assault Rifle. 01720_ System corrupted: Assault Rifle misfires. 01724_ Subatomizers dissect the Disposable Heat Sink. 01729_ 7K-1UG(g) destroyed. 01731_ CZ-PD3(R) destroyed. 01735_ Subatomizers dissect the Disposable Heat Sink. 01739_ 9FS